bitfinex/quotes_ETHUSD_20220112
["timestamp","ask_amount","ask_price","bid_price","bid_amount"]
[1641950655044,1.07336,3233.5,3233.3,3.1]
[1641950655846,0.3,3233.5,3233.3,3.1]
[1641950656047,0.3,3233.6,3233.3,3.1]
[1641950658900,0.07731,3233.9,3233.4,2.42534572]
[1641950658901,0.85051,3233.9,3233.4,2.42534572]
[1641950659101,5.24631,3234.1,3233.4,3.91711288]
[1641950659301,0.00170527,3233.7,3233.4,2.91711288]
[1641950659499,0.00170527,3233.7,3233.5,1.16770082]
[1641950659699,5.169,3234.1,3233.6,2.76255747]
[1641950660100,0.00341054,3234.0,3233.6,2.76255747]
[1641950660498,0.00284212,3233.9,3233.6,3.99740704]
[1641950660945,0.0022737,3233.8,3233.6,3.99740704]
[1641950661143,0.0022737,3233.8,3233.7,2.44491105]
[1641950661344,5.169,3234.1,3233.7,2.44491105]
[1641950661542,5.94218,3234.1,3233.7,2.44491105]
[1641950661742,0.00341054,3234.0,3233.7,2.44491105]
[1641950662145,0.00284212,3233.9,3233.7,2.44491105]
[1641950662348,0.00284212,3233.9,3233.6,1.23484957]
[1641950662547,5.94218,3234.1,3233.6,1.23484957]
[1641950662548,0.0022737,3233.8,3233.6,1.23484957]
[1641950662947,0.00170527,3233.7,3233.6,1.23484957]
[1641950663148,0.00170527,3233.7,3233.6,3.65315479]
[1641950664151,0.00170527,3233.7,3233.6,2.41830522]
[1641950665011,0.00170527,3233.7,3233.5,0.3]
[1641950665212,0.00170527,3233.7,3233.4,2.91647733]
[1641950665411,0.00113685,3233.6,3233.4,0.445]
[1641950667619,0.00113685,3233.6,3233.4,2.84503698]
[1641950667921,0.00113685,3233.6,3233.4,0.445]
[1641950668122,0.00113685,3233.6,3233.5,2.40926989]
[1641950670750,0.00113685,3233.6,3233.4,0.445]
[1641950673400,0.00113685,3233.6,3233.3,4.76680797]
[1641950673401,0.00113685,3233.6,3233.3,3.1]
[1641950676044,0.07731,3233.5,3233.3,3.1]
[1641950678348,0.07844685,3233.6,3233.3,3.1]
[1641950678548,0.00113685,3233.6,3233.3,3.1]
[1641950680798,0.00113685,3233.6,3233.3,3.4]
[1641950682803,0.00113685,3233.6,3233.3,3.1]
[1641950683003,0.00113685,3233.6,3233.5,1.30356297]
[1641950683205,0.00113685,3233.6,3233.5,3.8594221]
[1641950689810,0.00113685,3233.6,3233.5,4.1594221]
[1641950690212,0.00113685,3233.6,3233.5,2.85585913]
[1641950690513,0.00113685,3233.6,3233.3,3.4]
[1641950691368,0.00113685,3233.6,3233.4,1.34925145]
[1641950692166,0.00113685,3233.6,3233.3,3.4]
[1641950694166,0.77442685,3233.6,3233.3,3.4]
[1641950694818,0.77442685,3233.6,3233.3,3.1]
[1641950695417,0.85173685,3233.6,3233.3,3.1]
[1641950697819,0.77442685,3233.6,3233.3,3.1]
[1641950699352,0.77442685,3233.6,3233.4,0.01758812]
[1641950700357,0.00113685,3233.6,3233.4,0.01758812]
[1641950700556,0.00113685,3233.6,3233.3,3.1]
[1641950700855,0.00113685,3233.6,3233.4,0.01178017]
[1641950702300,0.00113685,3233.6,3233.4,2.49732542]
[1641950702803,0.00113685,3233.6,3233.3,3.1]
[1641950703302,0.00113685,3233.6,3233.4,2.51883126]
[1641950703701,0.00113685,3233.6,3233.3,3.4]
[1641950704102,0.00113685,3233.6,3233.3,5.87980241]
[1641950704502,0.00113685,3233.6,3233.3,3.4]
[1641950704704,0.00113685,3233.6,3233.3,3.1]
[1641950704903,0.00113685,3233.6,3233.3,5.57588705]
[1641950705107,0.00113685,3233.6,3233.3,3.1]
[1641950705403,0.00113685,3233.6,3233.3,5.60366777]
[1641950705703,0.00113685,3233.6,3233.3,5.90366777]
[1641950707153,0.00113685,3233.6,3233.3,3.4]
[1641950709801,0.00113685,3233.6,3233.4,2.56065247]
[1641950712205,0.00113685,3233.6,3233.5,6.095]
[1641950712407,0.00113685,3233.6,3233.5,9.30494104]
[1641950712608,0.00113685,3233.6,3233.5,10.90535104]
[1641950712807,0.00113685,3233.6,3233.5,31.63071836]
[1641950713647,5.169,3234.7,3233.5,31.63071836]
[1641950713850,5.169,3234.7,3233.7,0.77286]
[1641950714051,0.00682109,3234.6,3233.8,3.35494104]
[1641950714459,0.00625266,3234.5,3233.8,3.35494104]
[1641950714853,0.00568424,3234.4,3234.2,1.5362975]
[1641950715051,0.00568424,3234.4,3234.3,0.445]
[1641950715255,5.24628,3234.7,3234.3,0.445]
[1641950715661,0.00682109,3234.6,3234.3,0.445]
[1641950715954,0.00625266,3234.5,3234.3,0.445]
[1641950716452,5.24628,3234.7,3234.3,0.445]
[1641950716453,0.00568424,3234.4,3234.3,0.445]
[1641950716853,0.00568424,3234.4,3234.3,3.695]
[1641950717506,0.00568424,3234.4,3234.3,6.47381637]
[1641950717904,0.00568424,3234.4,3234.3,9.25109637]
[1641950718104,0.07728,3235.3,3234.4,23.74]
[1641950718313,0.07727,3236.0,3234.5,22.3252221]
[1641950718504,0.00454739,3235.2,3234.6,4.43454104]
[1641950718705,0.00454739,3235.2,3234.7,0.82227]
[1641950718905,0.00397896,3235.1,3234.7,0.82227]
[1641950719308,0.00341054,3235.0,3234.7,1.82227]
[1641950719505,0.00341054,3235.0,3234.8,2.90994104]
[1641950719705,0.00284212,3234.9,3234.8,5.20994104]
[1641950720207,0.00284212,3234.9,3234.8,6.20994104]
[1641950720813,0.00284212,3234.9,3234.8,5.20994104]
[1641950721051,0.00284212,3234.9,3234.8,2.90994104]
[1641950721450,0.00284212,3234.9,3234.8,3.35494104]
[1641950723153,0.00284212,3234.9,3234.8,6.45494104]
[1641950727806,0.00284212,3234.9,3234.8,3.1]
[1641950744850,0.00284212,3234.9,3234.8,5.10852616]
[1641950745050,0.00284212,3234.9,3234.8,6.10852616]
[1641950745451,0.00284212,3234.9,3234.8,10.05852616]
[1641950746255,0.00284212,3234.9,3234.8,10.35852616]
[1641950747310,0.00284212,3234.9,3234.8,6.40852616]
[1641950747611,0.00284212,3234.9,3234.8,8.45852616]
[1641950748009,0.00284212,3234.9,3234.8,8.53579616]
[1641950748609,0.00284212,3234.9,3234.8,7.23579616]
[1641950748810,0.02788875,3234.9,3234.8,7.23579616]
[1641950749212,0.02788875,3234.9,3234.8,7.15852616]
[1641950749810,0.02788875,3234.9,3234.8,7.45852616]
[1641950750010,0.02504663,3234.9,3234.8,8.45852616]
[1641950750417,0.02504663,3234.9,3234.8,5.80852616]
[1641950750613,0.02504663,3234.9,3234.8,4.845]
[1641950750814,0.02504663,3234.9,3234.8,3.845]
[1641950753456,0.02504663,3234.9,3234.8,6.845]
[1641950753658,0.10231663,3235.7,3235.4,1.52899205]
[1641950754158,0.00682108,3235.6,3235.4,1.52899205]
[1641950754562,0.00625266,3235.5,3235.4,1.52899205]
[1641950758850,0.03151009,3235.5,3234.9,0.3]
[1641950759254,0.00568423,3235.4,3234.9,0.3]
[1641950759653,0.02525743,3235.5,3234.9,0.3]
[1641950759654,0.00511581,3235.3,3234.9,0.3]
[1641950759857,0.00511581,3235.3,3235.0,1.11229864]
[1641950760053,0.00454739,3235.2,3235.0,1.11229864]
[1641950760453,0.00397896,3235.1,3235.0,1.11229864]
[1641950763707,0.02909586,3235.1,3235.0,1.11229864]
[1641950765213,0.02909586,3235.1,3235.0,4.31229864]
[1641950772635,0.02909586,3235.1,3235.0,6.64993146]
[1641950772835,0.02909586,3235.1,3235.0,8.46295769]
[1641950773137,0.07727,3236.1,3235.1,5.65]
[1641950773336,0.80710543,3236.5,3235.2,2.26575456]
[1641950773337,0.07725,3236.5,3235.2,2.26575456]
[1641950773553,0.00284212,3235.6,3235.2,3.85981131]
[1641950773754,0.00284212,3235.6,3235.4,1.5449308]
[1641950773957,0.07725,3236.5,3235.6,18.09]
[1641950774156,0.07725,3236.5,3235.7,1.80067935]
[1641950774358,0.00738951,3236.4,3235.7,2.64927935]
[1641950774556,0.00738951,3236.4,3235.7,2.94927935]
[1641950774755,0.00682108,3236.3,3235.7,2.94927935]
[1641950774956,0.00682108,3236.3,3235.8,0.77239]
[1641950775157,0.00625266,3236.2,3236.0,1.26974782]
[1641950775355,0.00625266,3236.2,3236.0,1.71474782]
[1641950775558,0.00568424,3236.1,3236.0,1.71474782]
[1641950775957,0.00568424,3236.1,3236.0,3.42896499]
[1641950776157,0.00568424,3236.1,3236.0,6.46164074]
[1641950776557,0.00568424,3236.1,3236.0,6.42037847]
[1641950776958,0.00568424,3236.1,3236.0,7.72037847]
[1641950777205,0.00568424,3236.1,3236.0,9.11664782]
[1641950777408,0.00568424,3236.1,3236.0,6.56664782]
[1641950778512,0.00568424,3236.1,3236.0,6.64388782]
[1641950779312,0.00568424,3236.1,3236.0,8.38239402]
[1641950781255,0.00568424,3236.1,3236.0,8.30515402]
[1641950781458,0.00568424,3236.1,3236.0,8.38239402]
[1641950782356,0.00568424,3236.1,3236.0,8.18049402]
[1641950782960,0.00568424,3236.1,3236.0,3.39198782]
[1641950783159,0.00568424,3236.1,3236.0,1.71474782]
[1641950784908,0.00568424,3236.1,3236.0,1.26974782]
[1641950787414,0.00568424,3236.1,3235.6,1.5916]
[1641950787614,3.38048448,3236.1,3235.6,1.1466]
[1641950787813,0.00511581,3236.0,3235.6,1.1466]
[1641950788013,0.07725,3235.9,3235.6,1.1466]
[1641950788213,0.08179739,3235.9,3235.6,1.1466]
[1641950788463,0.00397897,3235.8,3235.4,1.25997674]
[1641950788864,0.00341054,3235.7,3235.4,1.25997674]
[1641950789263,0.00284212,3235.6,3235.4,1.25997674]
[1641950789665,0.77268,3235.9,3235.4,1.25997674]
[1641950789666,0.0022737,3235.5,3235.4,1.25997674]
[1641950792912,0.0022737,3235.5,3235.4,5.85997674]
[1641950794512,0.0022737,3235.5,3235.4,1.25997674]
[1641950795966,0.0022737,3235.5,3235.4,3.90997674]
[1641950798170,0.0022737,3235.5,3235.4,1.25997674]
[1641950798967,0.0022737,3235.5,3235.4,4.15997674]
[1641950800213,0.0022737,3235.5,3235.4,1.25997674]
[1641950800815,0.0022737,3235.5,3235.4,3.50997674]
[1641950802918,0.0022737,3235.5,3235.4,3.80997674]
[1641950803468,0.0022737,3235.5,3235.4,4.35997674]
[1641950808208,0.0022737,3235.5,3235.4,4.65997674]
[1641950808408,0.0022737,3235.5,3235.4,4.95997674]
[1641950808807,0.0022737,3235.5,3235.4,4.35997674]
[1641950815811,0.0022737,3235.5,3235.4,4.65997674]
[1641950818019,0.0022737,3235.5,3235.4,29.05108747]
[1641950818219,0.0022737,3235.5,3235.4,29.36608747]
[1641950818654,0.0022737,3235.5,3235.4,30.59278747]
[1641950819260,0.0022737,3235.5,3235.4,33.22643078]
[1641950819860,0.0022737,3235.5,3235.4,33.99892078]
[1641950820064,13.93895,3237.2,3235.4,33.99892078]
[1641950820262,13.93895,3237.2,3236.0,0.77234]
[1641950820462,13.93895,3237.2,3236.1,0.445]
[1641950820463,0.01136847,3237.1,3236.1,0.445]
[1641950820664,0.07724,3237.0,3236.2,2.69359963]
[1641950820861,0.08804005,3237.0,3236.2,3.13859963]
[1641950821062,0.01023162,3236.9,3236.3,1.23752369]
[1641950821263,0.01023162,3236.9,3236.6,1.34828709]
[1641950821462,0.0096632,3236.8,3236.6,1.34828709]
[1641950821864,0.00909478,3236.7,3236.6,1.34828709]
[1641950822324,0.01080005,3236.7,3236.6,1.34828709]
[1641950822729,0.01080005,3236.7,3236.6,1.94828709]
[1641950822925,0.01080005,3236.7,3236.6,4.48216817]
[1641950823129,0.01080005,3236.7,3236.6,2.69738709]
[1641950823327,0.01080005,3236.7,3236.6,5.79738709]
[1641950824424,0.01080005,3236.7,3236.6,6.79738709]
[1641950825025,0.01080005,3236.7,3236.6,9.73239671]
[1641950826862,0.01080005,3236.7,3236.6,7.08000962]
[1641950827061,0.01080005,3236.7,3236.6,2.079127]
[1641950829066,0.01080005,3236.7,3236.6,2.524127]
[1641950830715,0.01080005,3236.7,3236.6,2.224127]
[1641950835985,0.01080005,3236.7,3236.6,2.524127]
[1641950836785,0.01080005,3236.7,3236.6,2.224127]
[1641950839225,0.01080005,3236.7,3236.6,4.70707486]
[1641950839427,0.01080005,3236.7,3236.6,5.90434832]
[1641950839925,0.01080005,3236.7,3236.6,6.20434832]
[1641950840229,0.01080005,3236.7,3236.6,6.50434832]
[1641950840424,0.01080005,3236.7,3236.6,7.50434832]
[1641950840825,0.01080005,3236.7,3236.6,7.20434832]
[1641950841760,0.01080005,3236.7,3236.6,7.50434832]
[1641950843970,0.01080005,3236.7,3236.6,6.50434832]
[1641950846418,0.07724,3237.6,3236.7,0.0001397]
[1641950846622,0.07724,3237.6,3236.8,0.445]
[1641950846817,0.00284212,3237.5,3236.8,0.445]
[1641950847217,0.07724,3237.6,3236.8,0.445]
[1641950847218,0.00227369,3237.4,3236.8,0.445]
[1641950847618,0.00170527,3237.3,3236.8,0.445]
[1641950848120,0.00113685,3237.2,3236.8,2.84723233]
[1641950851069,0.00113685,3237.2,3236.8,0.445]
[1641950852317,0.00113685,3237.2,3236.9,2.36742956]
[1641950852517,0.00113685,3237.2,3236.9,2.66742956]
[1641950852719,0.00113685,3237.2,3236.9,0.3]
[1641950853019,0.00113685,3237.2,3236.8,0.445]
[1641950854621,0.00113685,3237.2,3236.9,3.91715369]
[1641950854822,0.00113685,3237.2,3237.0,0.445]
[1641950855021,0.00113685,3237.2,3237.0,1.745]
[1641950855223,0.00113685,3237.2,3237.0,0.445]
[1641950856571,0.00113685,3237.2,3237.1,4.91929388]
[1641950856770,0.00113685,3237.2,3237.1,5.36429388]
[1641950856973,0.00113685,3237.2,3237.1,8.22397882]
[1641950858174,0.00113685,3237.2,3237.1,8.52397882]
[1641950858373,0.00113685,3237.2,3237.1,8.22397882]
[1641950859073,0.00113685,3237.2,3237.1,8.52397882]
[1641950859273,0.00113685,3237.2,3237.1,4.77397882]
[1641950859479,0.00113685,3237.2,3237.1,2.21429388]
[1641950859709,0.00113685,3237.2,3237.1,4.59679454]
[1641950860111,0.00113685,3237.2,3237.1,4.61359945]
[1641950860310,0.00113685,3237.2,3237.1,0.445]
[1641950862618,0.00113685,3237.2,3236.7,2.37608685]
[1641950862917,0.00113685,3237.2,3236.7,2.97608685]
[1641950863760,0.00113685,3237.2,3236.7,0.3001397]
[1641950864767,0.00113685,3237.2,3236.8,2.37674077]
[1641950864968,0.00113685,3237.2,3236.8,2.67674077]
[1641950866367,0.00113685,3237.2,3236.8,3.44898077]
[1641950866567,0.00113685,3237.2,3236.9,0.445]
[1641950866866,0.00113685,3237.2,3237.0,2.37961606]
[1641950867071,0.00113685,3237.2,3237.0,2.67961606]
[1641950867331,0.00113685,3237.2,3237.1,2.39988425]
[1641950869640,0.00113685,3237.2,3237.0,0.3]
[1641950869836,0.00113685,3237.2,3237.0,2.66495626]
[1641950870534,0.00113685,3237.2,3237.0,2.66486554]
[1641950870736,0.00113685,3237.2,3237.0,2.68116545]
[1641950870988,0.00113685,3237.2,3236.9,0.445]
[1641950871276,0.00113685,3237.2,3237.0,2.36569968]
[1641950871476,0.00113685,3237.2,3237.0,2.96569968]
[1641950871676,0.00113685,3237.2,3237.1,2.44599731]
[1641950874715,0.00113685,3237.2,3237.0,0.6]
[1641950874919,0.00113685,3237.2,3237.1,2.39634141]
[1641950875215,0.00113685,3237.2,3237.1,2.69634141]
[1641950875819,0.00113685,3237.2,3237.1,2.39634141]
[1641950877526,0.00113685,3237.2,3237.1,4.14134141]
[1641950877923,0.00113685,3237.2,3237.1,6.69134141]
[1641950879266,0.00113685,3237.2,3237.1,6.76855141]
[1641950879766,0.00113685,3237.2,3237.1,5.76855141]
[1641950880575,0.00113685,3237.2,3237.1,5.69134141]
[1641950881374,0.00113685,3237.2,3237.1,2.84134141]
[1641950882622,0.00113685,3237.2,3237.1,3.44134141]
[1641950884424,0.00113685,3237.2,3237.1,1.045]
[1641950884624,0.00113685,3237.2,3237.1,0.745]
[1641950885026,0.00113685,3237.2,3237.1,4.045]
[1641950885428,0.00113685,3237.2,3237.1,6.79876541]
[1641950886069,0.00113685,3237.2,3237.1,6.49876541]
[1641950886873,0.07721,3237.9,3237.1,6.49876541]
[1641950887071,0.07721,3237.9,3237.2,0.77225]
[1641950887276,0.00454739,3237.8,3237.4,1.49443316]
[1641950887574,0.00397896,3237.7,3237.4,1.79443316]
[1641950887977,0.00341054,3237.6,3237.4,1.79443316]
[1641950888376,0.00284212,3237.5,3237.4,1.79443316]
[1641950889821,0.00284212,3237.5,3237.4,2.09443316]
[1641950890022,0.00284212,3237.5,3237.4,1.79443316]
[1641950891121,0.00284212,3237.5,3237.4,4.24988818]
[1641950892325,0.00284212,3237.5,3237.4,4.54988818]
[1641950894576,0.00284212,3237.5,3237.4,7.64988818]
[1641950897921,0.00284212,3237.5,3237.4,5.19443316]
[1641950899926,0.00284212,3237.5,3237.4,4.59443316]
[1641950901777,0.00284212,3237.5,3237.4,3.1]
[1641950903481,0.00284212,3237.5,3237.4,4.36094534]
[1641950905924,0.00284212,3237.5,3237.4,4.66094534]
[1641950906329,0.00284212,3237.5,3237.4,3.4]
[1641950907932,0.00284212,3237.5,3237.4,5.79921786]
[1641950908135,0.00284212,3237.5,3237.4,3.4]
[1641950911785,0.00284212,3237.5,3237.4,6.12181245]
[1641950912452,0.00284212,3237.5,3237.4,6.56681245]
[1641950914256,0.00284212,3237.5,3237.4,3.845]
[1641950914459,0.00284212,3237.5,3237.4,3.4]
[1641950914757,0.00284212,3237.5,3237.4,3.1]
[1641950915987,0.00284212,3237.5,3237.4,3.4]
[1641950918185,0.00284212,3237.5,3237.4,5.94070791]
[1641950918785,3.34661,3238.1,3237.5,0.77218]
[1641950918986,0.07721,3238.1,3237.6,0.3]
[1641950919188,0.00568423,3238.0,3237.6,0.3]
[1641950919586,0.00511581,3237.9,3237.6,0.3]
[1641950920030,0.00454739,3237.8,3237.6,0.3]
[1641950920231,0.00454739,3237.8,3237.6,2.68363874]
[1641950920432,0.00397896,3237.7,3237.6,0.3]
[1641950921433,0.00397896,3237.7,3237.5,0.77218]
[1641950921837,0.00341054,3237.6,3237.5,0.77218]
[1641950922634,0.00341054,3237.6,3237.5,1.07218]
[1641950922835,0.00341054,3237.6,3237.5,3.45899557]
[1641950923137,0.00341054,3237.6,3237.5,1.07218]
[1641950923334,0.00341054,3237.6,3237.5,3.44412562]
[1641950924880,0.00341054,3237.6,3237.5,1.07218]
[1641950925083,0.00341054,3237.6,3237.5,3.45866983]
[1641950925482,0.00341054,3237.6,3237.5,3.48901173]
[1641950926984,0.00341054,3237.6,3237.5,3.48657363]
[1641950928030,0.00341054,3237.6,3237.5,3.78657363]
[1641950928233,0.00341054,3237.6,3237.5,4.23157363]
[1641950928431,0.00341054,3237.6,3237.5,10.90877363]
[1641950929031,0.9719852,3238.3,3237.6,5.60595792]
[1641950929232,0.9719852,3238.3,3237.9,1.29636659]
[1641950929433,0.9719852,3238.3,3238.0,2.58355971]
[1641950929434,0.00341054,3238.2,3238.0,2.58355971]
[1641950929633,0.00341054,3238.2,3238.0,2.88355971]
[1641950929831,0.9719852,3238.3,3238.2,1.105215]
[1641950930233,0.9719852,3238.3,3238.2,3.57348389]
[1641950930432,0.9719852,3238.3,3238.2,3.87348389]
[1641950930633,0.9719852,3238.3,3238.2,4.31848389]
[1641950931481,0.98656449,3238.3,3238.2,4.31848389]
[1641950934586,1.27188643,3238.3,3238.2,4.31848389]
[1641950934829,1.27188643,3238.3,3238.2,7.41848389]
[1641950937029,1.27188643,3238.3,3238.2,4.950215]
[1641950937830,1.27188643,3238.3,3238.2,7.41319596]
[1641950938030,1.27188643,3238.3,3238.2,4.950215]
[1641950939477,1.27188643,3238.3,3238.2,7.43402134]
[1641950941379,1.27188643,3238.3,3238.2,7.13402134]
[1641950941683,1.27188643,3238.3,3238.2,4.650215]
[1641950942627,1.27188643,3238.3,3238.2,4.950215]
[1641950944527,1.27188643,3238.3,3238.2,7.44093645]
[1641950945731,1.27188643,3238.3,3238.2,7.14093645]
[1641950946797,1.27188643,3238.3,3238.2,7.44093645]
[1641950947197,1.27188643,3238.3,3238.2,4.950215]
[1641950948000,1.27188643,3238.3,3238.2,5.250215]
[1641950949006,1.27188643,3238.3,3238.2,7.75285193]
[1641950950251,0.0772,3239.1,3238.9,1.53410507]
[1641950950455,0.0772,3239.1,3238.9,2.30598507]
[1641950950655,0.00795793,3239.0,3238.9,2.30598507]
[1641950951049,0.00852635,3239.1,3238.9,2.30598507]
[1641950951451,0.0096632,3239.3,3238.9,2.30598507]
[1641950951651,0.07717,3239.2,3238.9,2.30598507]
[1641950951851,0.08626477,3239.2,3238.9,2.30598507]
[1641950952051,0.00852635,3239.1,3238.9,2.30598507]
[1641950952454,0.08853847,3239.6,3238.9,0.77188]
[1641950952656,0.01200733,3239.3,3238.2,2.37711735]
[1641950952856,0.07718,3239.2,3238.0,0.445]
[1641950953057,0.08627477,3239.2,3238.0,0.445]
[1641950953254,0.00852635,3239.1,3238.0,0.445]
[1641950953488,0.07718,3239.0,3238.0,0.445]
[1641950953783,0.0073895,3238.9,3238.4,1.55428982]
[1641950954079,0.00682108,3238.8,3238.5,1.36570551]
[1641950954481,0.00625266,3238.7,3238.5,1.36570551]
[1641950954885,0.00568423,3238.6,3238.5,1.36570551]
[1641950955084,0.00568423,3238.6,3238.5,4.46570551]
[1641950955287,0.00852635,3238.6,3238.5,4.46570551]
[1641950957935,0.00852635,3238.6,3238.5,5.68244837]
[1641950959538,0.00852635,3238.6,3238.5,8.28315608]
[1641950959740,0.00852635,3238.6,3238.5,9.02815608]
[1641950959941,0.07718,3239.7,3238.7,0.02619113]
[1641950960140,3.82147,3239.9,3239.0,0.77174]
[1641950960339,0.00113685,3239.3,3239.0,0.77174]
[1641950960542,0.00113685,3239.3,3239.0,1.07174]
[1641950960744,0.00397897,3239.8,3239.1,0.3]
[1641950961019,0.00397897,3239.8,3239.6,1.26056329]
[1641950961210,0.00341054,3239.7,3239.6,1.26056329]
[1641950962009,2.50341054,3239.7,3239.0,2.2920393]
[1641950962211,2.50341054,3239.7,3239.0,0.3]
[1641950962415,0.00284212,3239.6,3238.8,0.745]
[1641950962614,0.00284212,3239.6,3238.8,1.045]
[1641950962814,0.00227369,3239.5,3238.9,0.00113685]
[1641950963015,0.00227369,3239.5,3238.9,0.44613685]
[1641950963215,0.00170527,3239.4,3238.9,0.44613685]
[1641950963416,0.29172407,3239.2,3238.9,0.44613685]
[1641950963618,0.29172407,3239.2,3238.9,1.96182304]
[1641950963815,0.29172407,3239.2,3238.9,1.51682304]
[1641950964745,0.29172407,3239.2,3238.9,0.00113685]
[1641950964945,0.29172407,3239.2,3238.9,3.10113685]
[1641950965152,0.29172407,3239.2,3238.9,3.1]
[1641950966754,0.29172407,3239.2,3238.9,4.28874347]
[1641950969696,0.29172407,3239.2,3239.0,0.3]
[1641950971696,0.29172407,3239.2,3238.9,4.28874347]
[1641950976392,0.29172407,3239.2,3238.9,5.06057347]
[1641950976594,0.29172407,3239.2,3238.9,4.28874347]
[1641950977404,3.17898756,3239.1,3238.9,3.1]
[1641950977600,4.32717,3239.0,3238.9,3.1]
[1641950977800,7.51513315,3239.0,3238.9,3.1]
[1641950978002,4.32717,3239.0,3238.9,3.10113685]
[1641950978406,0.77216,3238.6,3238.3,0.07717]
[1641950978601,3.44481693,3238.5,3238.3,0.07717]
[1641950978802,3.44481693,3238.5,3238.4,0.00284211]
[1641950979107,0.07718,3238.5,3238.4,0.00284211]
[1641950979308,5.6,3238.3,3237.4,15.008]
[1641950979503,1.38212912,3237.7,3237.4,16.48349772]
[1641950979760,1.38212912,3237.7,3237.5,0.00511581]
[1641950980154,0.5714,3237.8,3237.5,0.00511581]
[1641950980356,0.6486,3237.8,3237.5,0.00511581]
[1641950980756,0.0772,3237.8,3237.5,0.00511581]
[1641950981355,0.77239,3237.9,3237.5,1.53759572]
[1641950981556,0.77239,3237.9,3237.6,0.00221414]
[1641950981762,0.77228,3238.1,3237.6,0.00676153]
[1641950981958,2.39407,3238.4,3237.7,0.00397897]
[1641950982160,0.0772,3238.4,3237.7,0.00397897]
[1641950982362,7.1676,3238.6,3237.7,0.00397897]
[1641950982363,0.0772,3238.5,3237.7,0.00397897]
[1641950983165,0.0772,3238.5,3238.1,1.21125231]
[1641950983595,0.0772,3238.6,3238.2,0.00113685]
[1641950983796,0.7721419,3239.3,3238.2,0.00113685]
[1641950983797,0.07718,3239.0,3238.2,0.00113685]
[1641950983996,0.00113684,3238.6,3238.2,0.00113685]
[1641950984195,0.00284211,3238.9,3238.2,2.44910328]
[1641950984398,0.08115896,3239.1,3238.7,1.14597612]
[1641950984601,0.00227369,3238.8,3238.7,1.14597612]
[1641950984798,0.00341054,3239.0,3238.7,1.14597612]
[1641950984997,0.00227369,3238.8,3238.7,1.14597612]
[1641950985197,0.00284211,3238.9,3238.7,1.14597612]
[1641950985397,0.00227369,3238.8,3238.7,1.14597612]
[1641950987349,0.00227369,3238.8,3238.7,1.14277612]
[1641950988649,1.4785446,3238.8,3238.7,1.14277612]
[1641950988848,0.00227369,3238.8,3238.7,1.14277612]
[1641950989651,0.77439369,3238.8,3238.2,3.10113685]
[1641950989853,0.77439369,3238.8,3238.2,3.40113685]
[1641950990052,0.00170527,3238.7,3238.2,3.10113685]
[1641950990253,1.24940433,3238.7,3238.2,3.10113685]
[1641950990455,0.00113684,3238.6,3238.2,3.10113685]
[1641950990653,0.07831684,3238.6,3238.2,3.10113685]
[1641950991692,0.85048684,3238.6,3238.2,3.10113685]
[1641950992096,0.07831684,3238.6,3238.2,3.10113685]
[1641950992497,0.00113684,3238.6,3238.2,3.40113685]
[1641950994871,0.00113684,3238.6,3238.3,0.77201]
[1641950999803,0.00113684,3238.6,3238.2,3.40113685]
[1641951000199,0.00113684,3238.6,3238.2,3.10113685]
[1641951001403,0.00113684,3238.6,3238.2,4.17308965]
[1641951001603,0.00113684,3238.6,3238.2,5.63401965]
[1641951002110,0.00113684,3238.6,3238.3,2.89356593]
[1641951002575,0.00113684,3238.6,3238.3,3.19356593]
[1641951002780,0.00113684,3238.6,3238.3,4.73744593]
[1641951003076,0.00113684,3238.6,3238.4,0.3]
[1641951003276,0.00113684,3238.6,3238.5,2.59806772]
[1641951003477,0.00113684,3238.6,3238.5,2.89806772]
[1641951006092,0.29172407,3239.2,3239.1,1.30503806]
[1641951006294,0.29172407,3239.2,3238.7,0.7718856]
[1641951006295,0.29172407,3239.2,3238.8,2.38971328]
[1641951006596,0.29172407,3239.2,3238.8,0.6]
[1641951006994,0.00397896,3239.1,3238.8,0.6]
[1641951007196,0.00397896,3239.1,3238.8,0.3]
[1641951007402,0.00341054,3239.0,3238.8,0.6]
[1641951007799,0.29172407,3239.2,3238.9,4.14478163]
[1641951007999,0.07717,3239.5,3238.9,4.14478163]
[1641951008000,0.07717,3239.6,3239.0,0.77186]
[1641951008300,0.07717,3239.9,3239.1,0.3]
[1641951008503,3.703727,3240.0,3239.1,0.6]
[1641951008699,0.00682108,3239.6,3239.2,1.36768585]
[1641951009099,3.703727,3240.0,3239.4,0.77175]
[1641951009100,0.00625265,3239.5,3239.4,0.77175]
[1641951009301,0.00625265,3239.5,3239.4,1.8434504]
[1641951009500,0.13353997,3239.5,3239.4,2.1434504]
[1641951010763,0.12728732,3239.6,3239.4,2.1434504]
[1641951010963,3.703727,3240.0,3239.5,0.3]
[1641951011159,3.703727,3240.0,3239.7,0.7716]
[1641951011361,0.0022737,3239.9,3239.8,0.7715518]
[1641951011761,1.82223699,3240.0,3239.8,9.51575545]
[1641951011963,1.82223699,3240.0,3239.9,4.14742642]
[1641951012164,1.82223699,3240.0,3239.9,3.10354298]
[1641951012365,1.82223699,3240.0,3239.9,6.06818642]
[1641951012567,1.82223699,3240.0,3239.9,3.18070298]
[1641951012764,1.82223699,3240.0,3239.9,6.06818642]
[1641951013169,0.69091224,3240.0,3239.9,6.06818642]
[1641951013368,0.07716,3241.1,3240.0,4.05]
[1641951013609,0.07716,3241.1,3240.6,0.77138]
[1641951013807,0.9719852,3241.2,3240.7,2.92991581]
[1641951014014,0.9719852,3241.2,3240.7,3.22991581]
[1641951014206,0.00682108,3241.1,3240.7,3.22991581]
[1641951014407,0.00682108,3241.1,3240.8,1.14574774]
[1641951014609,0.00625266,3241.0,3240.9,3.46222388]
[1641951014809,0.00625266,3241.0,3240.9,4.06222388]
[1641951016512,0.00625266,3241.0,3240.9,1.69297241]
[1641951016915,0.00625266,3241.0,3240.4,0.07713]
[1641951017114,0.08338266,3241.0,3240.9,3.1]
[1641951017347,0.07713,3241.0,3240.9,3.1]
[1641951018248,0.07713,3241.1,3240.9,3.1]
[1641951018648,0.08395108,3241.1,3240.9,3.1]
[1641951024529,0.00682108,3241.1,3240.9,3.1]
[1641951026150,1.55012108,3241.1,3240.9,3.1]
[1641951026553,0.00682108,3241.1,3240.9,3.1]
[1641951027152,0.08395108,3241.1,3240.9,3.1]
[1641951027353,0.85553108,3241.1,3240.9,3.1]
[1641951028997,0.77840108,3241.1,3240.9,3.1]
[1641951031009,0.00682108,3241.1,3240.9,3.1]
[1641951033457,5.76917398,3241.0,3240.9,3.1]